bitfinex/quotes_SOLUSD_20251019
["timestamp","ask_amount","ask_price","bid_price","bid_amount"]
[1760858949346,3.32887142,186.17,186.14,26.89887142]
[1760858949715,0.69,186.16,186.14,4.01887142]
[1760858949928,0.69,186.16,186.12,0.68]
[1760858950135,0.69,186.16,186.13,3.32887142]
[1760858950317,4.01887142,186.16,186.13,3.32887142]
[1760858951043,4.01887142,186.15,186.13,3.32887142]
[1760858951445,4.01887142,186.15,186.11,22.88]
[1760858951649,4.01887142,186.15,186.12,4.01887142]
[1760858951956,3.32887142,186.15,186.12,4.68887142]
[1760858952449,3.32887142,186.13,186.12,4.01887142]
[1760858952755,3.32887142,186.13,186.1,3.32887142]
[1760858952756,4.01887142,186.13,186.1,3.32887142]
[1760858955040,0.5376055,186.18,186.1,3.32887142]
[1760858955041,3.32887142,186.12,186.1,3.32887142]
[1760858955349,3.32887142,186.13,186.08,31.97621725]
[1760858955536,4.01887142,186.13,186.09,0.66]
[1760858955953,4.01887142,186.13,186.1,0.66]
[1760858956853,3.32887142,186.13,186.1,0.66]
[1760858957048,5.90875523,186.18,186.11,0.66]
[1760858957049,0.69,186.15,186.11,0.66]
[1760858957350,3.32887142,186.14,186.11,0.66]
[1760858957928,4.01887142,186.14,186.1,26.86887142]
[1760858959455,3.32887142,186.13,186.11,0.66]
[1760858960556,3.32887142,186.13,186.1,26.86887142]
[1760858961057,3.32887142,186.13,186.11,0.66]
[1760858961357,3.32887142,186.12,186.1,22.88]
[1760858963055,3.32887142,186.12,186.1,23.54]
[1760858963671,3.32887142,186.13,186.11,0.66]
[1760858965470,3.32887142,186.13,186.1,23.54]
[1760858965774,4.01887142,186.13,186.1,22.88]
[1760858965967,3.32887142,186.12,186.08,3.98887142]
[1760858966268,3.32887142,186.11,186.09,0.66]
[1760858966651,3.32887142,186.1,186.07,0.66]
[1760858966852,3.32887142,186.1,186.08,0.66]
[1760858967244,0.69,186.09,186.04,0.53751881]
[1760858967555,3.32887142,186.05,186.0,0.66]
[1760858967755,0.69,186.06,186.01,0.66]
[1760858967963,0.69,186.06,186.02,0.66]
[1760858967964,0.5376055,186.05,186.02,0.66]
[1760858968166,3.32887142,186.06,186.03,0.66]
[1760858968549,3.32887142,186.07,186.04,0.66]
[1760858968745,3.32887142,186.06,186.04,0.66]
[1760858968959,3.32887142,186.06,186.02,0.66]
[1760858969268,3.32887142,186.04,186.02,0.66]
[1760858969445,3.32887142,186.04,186.01,22.88]
[1760858969642,3.32887142,186.04,186.01,23.54]
[1760858969866,3.32887142,186.04,186.01,0.66]
[1760858970360,3.32887142,186.04,186.02,0.66]
[1760858970751,3.32887142,186.04,185.98,28.79461195]
[1760858971065,3.32887142,186.04,185.99,0.66]
[1760858972556,3.32887142,186.05,185.99,9.36548914]
[1760858972752,3.32887142,186.05,186.0,0.66]
[1760858974365,4.01887142,186.06,186.0,0.62229208]
[1760858974872,3.86647692,186.05,186.0,0.62229208]
[1760858975259,4.57647692,186.05,185.99,8.70548914]
[1760858975774,4.03887142,186.05,185.99,8.70548914]
[1760858976152,4.03887142,186.05,186.0,0.66]
[1760858976945,4.03887142,186.05,186.01,0.66]
[1760858977568,0.71,186.05,186.01,0.66]
[1760858977777,4.03887142,186.05,186.01,0.66]
[1760858978462,3.32887142,186.05,186.02,0.66]
[1760858980074,4.03887142,186.05,186.02,0.66]
[1760858980743,4.03887142,186.05,185.99,8.70548914]
[1760858980951,4.03887142,186.05,186.0,0.66]
[1760858981150,3.32887142,186.04,186.0,0.66]
[1760858981363,3.32887142,186.04,186.01,0.66]
[1760858982351,4.03887142,186.05,186.01,0.66]
[1760858983568,1.1876055,186.08,186.02,0.68]
[1760858983879,3.32887142,186.07,186.02,0.68]
[1760858984058,3.32887142,186.06,186.0,3.86650582]
[1760858984262,3.32887142,186.06,186.02,0.68]
[1760858984463,3.97887142,186.06,186.02,0.68]
[1760858985073,3.32887142,186.06,186.02,0.68]
[1760858985266,3.97887142,186.05,186.01,0.68]
[1760858985579,3.97887142,186.05,186.0,0.5376344]
[1760858985781,3.97887142,186.05,186.02,0.68]
[1760858985782,3.32887142,186.05,186.02,0.68]
[1760858986081,3.32887142,186.04,186.01,22.88]
[1760858986254,3.97887142,186.04,186.01,22.88]
[1760858986573,3.97887142,186.04,186.01,23.56]
[1760858986749,3.32887142,186.04,186.01,23.56]
[1760858987775,3.97887142,186.04,185.99,0.68]
[1760858987976,3.97887142,186.04,186.0,0.68]
[1760858989171,3.97887142,186.03,185.98,22.88]
[1760858989473,3.97887142,186.02,185.98,23.56]
[1760858989979,3.32887142,186.02,185.99,0.68]
[1760858992282,3.97887142,186.02,185.99,0.68]
[1760858993684,3.32887142,186.03,185.99,0.68]
[1760858993893,3.97887142,186.03,185.99,0.68]
[1760858995083,3.32887142,186.04,185.99,0.68]
[1760858995883,3.97887142,186.04,185.99,0.68]
[1760858996897,3.97887142,186.04,186.0,0.68]
[1760858999084,0.65,186.03,186.0,0.68]
[1760858999380,3.97887142,186.04,186.0,0.68]
[1760859000182,3.32887142,186.06,186.01,0.68]
[1760859000376,3.32887142,186.06,186.01,23.56]
[1760859000568,3.32887142,186.05,186.01,22.88]
[1760859000778,3.32887142,186.05,186.02,0.68]
[1760859001593,0.5376055,186.08,186.03,0.68]
[1760859001779,102.75,186.09,186.03,0.68]
[1760859001979,106.07887142,186.09,186.04,0.53751881]
[1760859002289,3.97887142,186.11,186.05,4.00887142]
[1760859002469,3.97887142,186.11,186.05,3.32887142]
[1760859002673,3.97887142,186.11,186.06,0.68]
[1760859002974,3.32887142,186.11,186.07,0.68]
[1760859003180,3.32887142,186.11,186.07,23.56]
[1760859003378,3.32887142,186.11,186.08,22.88]
[1760859003578,3.97887142,186.11,186.08,22.88]
[1760859004897,3.32887142,186.1,186.08,22.88]
[1760859005889,0.65,186.12,186.08,23.56]
[1760859006187,3.97887142,186.12,186.08,0.68]
[1760859006604,4.8038693,186.14,186.09,0.68]
[1760859006786,3.32887142,186.15,186.09,4.00887142]
[1760859006979,3.32887142,186.16,186.1,4.54621693]
[1760859007182,3.32887142,186.15,186.11,0.68]
[1760859007490,3.32887142,186.15,186.12,22.88]
[1760859007798,3.32887142,186.15,186.13,0.68]
[1760859008483,3.32887142,186.16,186.13,0.68]
[1760859008677,3.32887142,186.15,186.12,22.88]
[1760859008896,0.65,186.17,186.13,0.68]
[1760859009069,3.32887142,186.16,186.13,0.68]
[1760859009473,3.32887142,186.16,186.12,23.56]
[1760859009690,3.32887142,186.15,186.12,23.56]
[1760859010195,3.32887142,186.13,186.09,22.88]
[1760859010489,3.32887142,186.13,186.06,5.37456703]
[1760859010490,3.32887142,186.1,186.06,9.62793441]
[1760859010696,3.32887142,186.11,186.09,22.88]
[1760859010895,3.32887142,186.11,186.09,23.55]
[1760859011278,3.32887142,186.1,186.09,23.55]
[1760859011473,3.32887142,186.1,186.08,22.88]
[1760859011684,3.32887142,186.1,186.08,23.55]
[1760859012314,3.32887142,186.11,186.09,23.55]
[1760859013110,3.32887142,186.12,186.09,0.67]
[1760859013711,3.32887142,186.12,186.1,0.71]
[1760859013914,3.32887142,186.12,186.11,0.71]
[1760859014295,3.32887142,186.13,186.11,0.71]
[1760859014612,1.2076055,186.17,186.12,0.71]
[1760859014806,3.32887142,186.15,186.1,0.53734551]
[1760859015013,3.32887142,186.14,186.11,0.71]
[1760859018110,3.32887142,186.13,186.11,0.71]
[1760859018314,3.99887142,186.12,186.07,1.24743214]
[1760859018513,3.32887142,186.11,186.08,0.71]
[1760859018914,3.32887142,186.11,186.09,0.71]
[1760859019119,3.32887142,186.12,186.09,0.71]
[1760859019420,3.32887142,186.12,186.08,3.32887142]
[1760859019604,3.32887142,186.1,186.07,0.71]
[1760859019811,3.32887142,186.09,186.07,0.71]
[1760859020506,3.32887142,186.09,186.06,3.86633245]
[1760859020707,3.32887142,186.09,186.07,0.71]
[1760859020907,3.32887142,186.09,186.06,3.86633245]
[1760859021133,3.32887142,186.09,186.07,0.71]
[1760859021626,3.32887142,186.1,186.07,0.71]
[1760859022122,3.32887142,186.12,186.08,0.71]
[1760859022421,125.65,186.17,186.1,3.32887142]
[1760859022617,3.32887142,186.16,186.11,4.57618806]
[1760859022809,3.32887142,186.15,186.12,0.71]
[1760859024005,3.32887142,186.14,186.12,0.71]
[1760859024213,3.32887142,186.14,186.1,17.40460954]
[1760859024397,3.32887142,186.13,186.1,0.71]
[1760859024601,3.32887142,186.11,186.09,16.1590046]
[1760859024927,3.32887142,186.11,186.09,16.8690046]
[1760859025112,3.32887142,186.11,186.07,28.96427695]
[1760859025319,3.32887142,186.11,186.09,3.32887142]
[1760859025613,3.32887142,186.11,186.09,4.03887142]
[1760859026124,3.32887142,186.12,186.1,0.71]
[1760859026522,3.32887142,186.13,186.1,0.71]
[1760859026726,3.32887142,186.13,186.1,3.32887142]
[1760859026922,3.32887142,186.14,186.11,0.71]
[1760859027109,3.32887142,186.14,186.12,0.71]
[1760859027316,3.32887142,186.14,186.1,4.03887142]
[1760859027518,3.32887142,186.14,186.11,0.71]
[1760859028317,1.2076055,186.16,186.11,0.71]
[1760859028522,3.32887142,186.14,186.11,23.59]
[1760859029125,3.32887142,186.14,186.12,0.71]
[1760859029505,105.42887142,186.17,186.13,0.5372589]
[1760859029716,3.32887142,186.18,186.14,0.71]
[1760859029925,3.32887142,186.16,186.13,0.5372589]
[1760859030133,3.32887142,186.16,186.13,16.69278274]
[1760859030313,3.32887142,186.16,186.13,1.2472589]
[1760859030503,3.32887142,186.16,186.13,4.03887142]
[1760859030710,3.32887142,186.15,186.13,3.32887142]
[1760859031013,3.32887142,186.15,186.11,1.24731664]
[1760859031209,3.32887142,186.13,186.11,0.71]
[1760859031513,3.32887142,186.13,186.09,29.50110249]
[1760859031828,3.32887142,186.12,186.11,3.32887142]
[1760859033130,3.32887142,186.13,186.11,3.32887142]
[1760859034416,3.32887142,186.13,186.09,6.62111457]
[1760859034737,3.32887142,186.13,186.1,16.86813427]
[1760859035437,3.32887142,186.13,186.1,16.15813427]
[1760859035629,3.32887142,186.13,186.11,0.71]
[1760859035931,0.67,186.15,186.11,0.71]
[1760859036130,3.32887142,186.14,186.11,0.71]
[1760859039733,3.32887142,186.14,186.1,0.71]
[1760859039936,3.32887142,186.13,186.1,0.71]
[1760859040238,3.32887142,186.13,186.1,4.03887142]
[1760859042039,3.32887142,186.14,186.11,0.71]
[1760859042536,3.32887142,186.13,186.09,0.71]
[1760859042841,3.32887142,186.13,186.1,0.71]
[1760859043737,3.99887142,186.14,186.1,0.71]
[1760859046426,0.67,186.14,186.1,0.71]
[1760859046625,1.2076055,186.14,186.1,0.71]
[1760859047741,0.5376055,186.14,186.11,0.67]
[1760859048053,0.66,186.14,186.1,0.67]
[1760859048538,0.66,186.14,186.1,3.99887142]
[1760859050141,0.66,186.14,186.1,3.32887142]
[1760859050325,4.52647692,186.15,186.11,0.67]
[1760859050532,3.86647692,186.15,186.11,0.67]
[1760859050730,0.66,186.14,186.11,0.67]
[1760859051555,0.66,186.13,186.09,0.67]
[1760859051729,4.52647692,186.14,186.09,3.32887142]
[1760859051930,4.52647692,186.14,186.1,0.67]
[1760859054729,1.1976055,186.14,186.1,0.67]
[1760859054956,0.66,186.14,186.1,0.67]
[1760859055359,0.66,186.14,186.09,3.32887142]
[1760859055561,0.66,186.14,186.11,0.67]
[1760859055940,0.66,186.14,186.09,3.32887142]
[1760859056139,0.66,186.14,186.1,0.67]
[1760859057567,0.66,186.14,186.09,3.32887142]
[1760859057764,0.66,186.14,186.1,0.67]
[1760859058265,0.5376055,186.13,186.1,0.67]
[1760859058854,3.32887142,186.11,186.09,3.32887142]
[1760859059150,3.32887142,186.1,186.06,0.67]
[1760859059771,3.32887142,186.1,186.06,3.99887142]
[1760859059941,3.32887142,186.1,186.07,0.67]
[1760859060147,3.32887142,186.09,186.07,0.67]
[1760859060456,3.32887142,186.1,186.07,0.67]
[1760859065153,3.32887142,186.1,186.06,3.32887142]
[1760859065154,3.32887142,186.1,186.08,0.67]
[1760859065349,3.32887142,186.1,186.07,0.67]
[1760859066452,3.32887142,186.09,186.07,0.67]
[1760859066787,4.52647692,186.08,186.02,0.67]
[1760859067069,3.32887142,186.06,186.02,3.99887142]
[1760859067272,3.32887142,186.06,186.03,0.67]
[1760859068458,3.32887142,186.06,186.02,3.32887142]
[1760859068459,3.32887142,186.05,186.02,3.32887142]
[1760859068793,3.32887142,186.05,186.02,0.67]
[1760859069653,3.32887142,186.04,186.0,16.85597063]
[1760859070171,3.32887142,186.04,186.01,0.69]
[1760859071057,23.4176055,186.09,186.01,4.01887142]
[1760859071260,23.4176055,186.11,186.03,3.32887142]
[1760859071457,3.86647692,186.11,186.05,3.32887142]
[1760859071653,3.86647692,186.11,186.06,0.69]
[1760859071850,4.57647692,186.11,186.07,0.69]
[1760859073772,3.32887142,186.1,186.07,0.69]
[1760859074476,3.32887142,186.1,186.05,0.53748992]
[1760859074680,3.32887142,186.1,186.06,0.68]
[1760859074883,3.32887142,186.09,186.06,0.68]
[1760859078082,3.32887142,186.09,186.05,3.32887142]
[1760859078278,0.69,186.08,186.03,9.24184889]
[1760859078582,0.69,186.08,186.04,4.00887142]
[1760859078776,0.69,186.08,186.05,0.68]
[1760859078977,3.32887142,186.09,186.05,0.68]
[1760859078978,4.01887142,186.09,186.05,0.68]
[1760859080585,3.32887142,186.08,186.05,0.68]
[1760859081680,4.01887142,186.09,186.04,5.37511652]
[1760859081880,4.01887142,186.1,186.05,0.68]
[1760859082071,4.01887142,186.1,186.06,0.68]
[1760859084399,3.32887142,186.09,186.06,0.68]
[1760859087985,4.01887142,186.09,186.06,0.68]
[1760859088296,4.01887142,186.08,186.04,0.68]
[1760859088470,4.01887142,186.07,186.04,0.68]
[1760859088669,3.32887142,186.07,186.04,0.68]
[1760859089167,3.32887142,186.06,186.04,0.68]
[1760859089588,3.32887142,186.07,186.04,0.68]
[1760859090691,4.01887142,186.07,186.02,5.37567992]
[1760859090896,4.01887142,186.07,186.03,0.68]
[1760859094388,3.32887142,186.06,186.03,0.68]
[1760859094591,3.32887142,186.04,185.99,28.25644082]
[1760859094897,3.32887142,186.02,185.99,28.25644082]
[1760859095096,3.32887142,186.03,186.0,0.68]
[1760859096188,3.32887142,186.06,186.01,3.86647692]
[1760859096389,3.32887142,186.08,186.03,3.32887142]
[1760859096613,4.01887142,186.09,186.03,3.86641912]
[1760859096894,4.01887142,186.09,186.04,0.68]
[1760859097678,4.01887142,186.08,186.04,0.68]
[1760859099596,3.32887142,186.07,186.04,0.68]
[1760859100189,4.01887142,186.08,186.04,0.68]
[1760859100390,3.32887142,186.08,186.05,0.68]
[1760859100801,3.32887142,186.09,186.05,0.68]
[1760859101098,102.6376055,186.1,186.05,0.68]
[1760859101307,3.32887142,186.08,186.03,1.2175477]
[1760859101507,4.01887142,186.08,186.04,0.68]
[1760859102005,3.32887142,186.06,186.02,0.68]
[1760859102305,4.01887142,186.06,186.02,0.68]
[1760859103793,0.69,186.06,186.02,0.68]
[1760859104403,3.32887142,186.07,186.03,0.7]
[1760859104591,4.04887142,186.07,186.03,0.7]
[1760859106202,3.32887142,186.08,186.04,0.7]
[1760859106383,0.72,186.07,186.04,0.7]
[1760859106585,3.32887142,186.09,186.05,0.7]
[1760859106802,102.1,186.1,186.06,3.86633245]
[1760859106995,102.1,186.1,186.07,0.7]
[1760859107306,102.1,186.1,186.08,0.7]
[1760859107686,0.72,186.14,186.09,4.02887142]
[1760859108003,3.32887142,186.12,186.07,3.32887142]
[1760859108194,4.04887142,186.12,186.08,1.23740326]
[1760859108393,0.72,186.12,186.08,1.23740326]
[1760859109092,3.32887142,186.12,186.08,1.23740326]
[1760859109703,3.32887142,186.12,186.08,0.7]
[1760859110490,4.04887142,186.12,186.08,0.7]
[1760859111289,3.32887142,186.1,186.05,4.86310715]
[1760859111494,0.72,186.09,186.05,0.7]
[1760859111695,4.04887142,186.09,186.05,0.7]
[1760859111898,3.32887142,186.09,186.06,0.7]
[1760859113513,3.32887142,186.1,186.06,0.7]
[1760859113806,4.04887142,186.1,186.06,0.7]
[1760859114894,4.16310715,186.14,186.04,23.58]
[1760859114895,4.04887142,186.09,186.04,23.58]
[1760859115096,4.04887142,186.09,186.05,0.7]
[1760859115296,4.04887142,186.11,186.06,0.7]
[1760859115495,0.72,186.1,186.06,0.7]
[1760859116815,4.04887142,186.11,186.06,0.7]
[1760859117116,3.32887142,186.11,186.06,0.7]
[1760859117294,0.72,186.1,186.06,0.7]
[1760859118030,4.04887142,186.1,186.06,0.7]
[1760859119222,4.04887142,186.1,186.05,5.37482624]
[1760859119223,3.32887142,186.1,186.07,0.7]
[1760859119820,4.04887142,186.11,186.07,0.7]
[1760859120416,0.72,186.1,186.06,0.7]
[1760859121027,4.04887142,186.1,186.06,0.7]
[1760859125111,0.72,186.09,186.04,28.95517182]
[1760859125416,0.72,186.09,186.05,0.7]
[1760859125825,4.04887142,186.09,186.05,0.7]
[1760859126331,4.04887142,186.09,186.04,28.25517182]
[1760859126620,4.04887142,186.09,186.05,0.7]
[1760859126837,3.32887142,186.09,186.06,0.7]
[1760859127939,4.04887142,186.1,186.06,0.7]
[1760859128829,3.32887142,186.1,186.07,0.7]
[1760859129126,3.32887142,186.11,186.08,0.7]
[1760859130025,3.97887142,186.11,186.08,0.7]
[1760859130204,4.81310715,186.14,186.06,3.32887142]
[1760859130409,3.97887142,186.14,186.09,0.65]
[1760859130611,102.6376055,186.15,186.1,0.53734551]
[1760859130612,3.32887142,186.15,186.1,0.53734551]
[1760859130910,3.32887142,186.15,186.11,0.65]
[1760859131229,3.32887142,186.15,186.12,0.65]
[1760859131428,102.2,186.19,186.13,4.51613032]
[1760859131631,3.42887142,186.19,186.14,0.65]
[1760859131803,0.1,186.19,186.15,3.8660726]
[1760859132002,0.1,186.19,186.16,0.65]
[1760859132203,0.65,186.18,186.12,0.65]
[1760859132410,3.32887142,186.16,186.12,0.65]
[1760859132631,3.97887142,186.16,186.12,0.65]
[1760859132835,3.32887142,186.15,186.12,0.65]
[1760859133023,3.97887142,186.15,186.1,28.79073462]
[1760859133229,0.65,186.15,186.11,0.65]
[1760859133426,3.97887142,186.14,186.08,6.56133555]
[1760859133629,3.32887142,186.13,186.08,6.56133555]
[1760859133936,3.32887142,186.13,186.09,0.67]
[1760859134229,3.32887142,186.13,186.1,0.67]
[1760859134435,4.55647692,186.12,186.07,23.55]
[1760859134649,3.32887142,186.12,186.08,0.67]
[1760859134813,4.01887142,186.12,186.08,0.67]
[1760859135335,3.32887142,186.13,186.09,0.67]
[1760859135506,3.32887142,186.13,186.1,0.67]
[1760859136136,0.5376055,186.16,186.07,3.86630356]
[1760859136441,3.32887142,186.13,186.11,0.67]
[1760859136814,3.32887142,186.13,186.07,3.86630356]
[1760859137013,3.32887142,186.14,186.08,6.04391643]
[1760859137312,3.32887142,186.14,186.09,1.20737438]
[1760859137631,3.32887142,186.17,186.11,3.32887142]
[1760859137827,4.01887142,186.16,186.11,0.53731664]
[1760859138154,3.32887142,186.15,186.11,0.53731664]
[1760859138435,4.01887142,186.15,186.11,1.20731664]
[1760859139211,4.01887142,186.15,186.11,0.67]
[1760859139412,3.32887142,186.14,186.11,6.04391643]
[1760859140538,4.01887142,186.15,186.11,6.04391643]
[1760859140732,3.32887142,186.16,186.12,0.67]
[1760859140927,3.32887142,186.16,186.13,0.67]
[1760859141437,0.6376055,186.19,186.14,0.67]
[1760859141648,0.1,186.19,186.15,0.67]
[1760859141815,3.42887142,186.19,186.16,0.67]
[1760859142634,3.42887142,186.19,186.14,9.90839496]
[1760859142942,3.42887142,186.19,186.15,0.67]
[1760859143239,3.42887142,186.19,186.15,4.09887142]
[1760859143838,3.42887142,186.19,186.15,0.67]
[1760859144026,3.42887142,186.19,186.16,3.42887142]
[1760859145339,0.1,186.19,186.16,3.42887142]
[1760859145513,3.42887142,186.19,186.16,3.42887142]
[1760859145717,0.1,186.19,186.17,1.20714347]
[1760859145915,0.1,186.19,186.18,0.67]
[1760859146931,0.1,186.19,186.18,9.47045332]
[1760859147336,0.1,186.19,186.18,8.80045332]
[1760859147751,4.11887142,186.19,186.14,1.20723004]
[1760859147954,4.11887142,186.19,186.16,3.32887142]
[1760859148151,3.32887142,186.17,186.16,3.32887142]
[1760859148445,3.32887142,186.17,186.12,0.67]
[1760859148446,4.01887142,186.17,186.13,3.32887142]
[1760859148650,3.32887142,186.15,186.13,3.32887142]
[1760859148826,3.32887142,186.15,186.12,0.67]
[1760859149021,3.32887142,186.15,186.12,4.68887142]
[1760859149942,3.32887142,186.17,186.13,0.67]
[1760859150640,4.01887142,186.17,186.13,0.67]
[1760859150836,3.32887142,186.16,186.13,0.67]
[1760859151036,3.32887142,186.16,186.12,4.68887142]
[1760859152452,4.01887142,186.16,186.12,4.68887142]
[1760859152750,3.32887142,186.15,186.12,4.68887142]
[1760859152947,3.32887142,186.15,186.13,0.67]
[1760859153548,3.32887142,186.15,186.12,4.01887142]
[1760859153848,3.32887142,186.14,186.1,0.67]
[1760859154147,3.32887142,186.14,186.11,4.68887142]
[1760859154338,4.01887142,186.14,186.09,0.67]
[1760859154533,4.01887142,186.14,186.1,3.99887142]
[1760859156855,3.32887142,186.15,186.11,0.67]
[1760859157153,3.32887142,186.15,186.12,0.67]
[1760859157530,3.86647692,186.18,186.12,4.53615919]
[1760859157728,3.32887142,186.18,186.13,3.99887142]
[1760859157928,3.32887142,186.18,186.14,0.67]
[1760859158143,3.32887142,186.16,186.13,3.32887142]
[1760859158348,3.32887142,186.15,186.11,0.67]
[1760859158530,4.01887142,186.16,186.12,3.32887142]
[1760859159053,4.01887142,186.15,186.12,3.32887142]
[1760859159742,4.01887142,186.15,186.11,6.04343381]
[1760859160056,4.01887142,186.15,186.11,6.71343381]
[1760859160938,0.69,186.16,186.11,6.71343381]
[1760859161146,3.32887142,186.15,186.11,6.71343381]
[1760859161643,3.32887142,186.15,186.12,0.67]
[1760859162246,3.32887142,186.15,186.11,6.04343381]
[1760859162446,3.32887142,186.15,186.11,6.71343381]
[1760859164060,3.98887142,186.15,186.11,6.71343381]
[1760859165562,3.32887142,186.15,186.11,6.04343381]
[1760859165767,3.32887142,186.17,186.12,1.22728777]
[1760859166065,3.32887142,186.18,186.13,0.69]
[1760859166241,3.98887142,186.18,186.14,0.69]
[1760859166437,3.32887142,186.17,186.14,0.69]
[1760859167267,0.66,186.18,186.14,0.69]
[1760859167565,3.32887142,186.17,186.14,0.69]
[1760859169065,0.6376055,186.19,186.13,5.37311209]
[1760859169364,3.32887142,186.17,186.14,0.69]
[1760859169566,3.32887142,186.17,186.13,5.37311209]
[1760859169759,3.32887142,186.17,186.14,0.69]
[1760859170062,3.32887142,186.17,186.15,0.69]
[1760859170867,3.32887142,186.17,186.13,5.37311209]
[1760859171067,1.2976055,186.19,186.13,5.37311209]
[1760859171068,3.32887142,186.16,186.13,5.37311209]
[1760859171256,3.32887142,186.16,186.14,0.69]
[1760859172161,3.98887142,186.15,186.13,5.37311209]
[1760859172361,3.32887142,186.14,186.1,0.69]
[1760859172566,3.32887142,186.14,186.08,26.20887142]
[1760859172567,3.32887142,186.14,186.11,0.69]
[1760859173062,3.32887142,186.14,186.11,6.06312797]
[1760859173264,3.32887142,186.14,186.11,0.69]
[1760859179671,3.98887142,186.15,186.11,0.69]
[1760859180245,3.32887142,186.12,186.08,0.69]
[1760859180458,3.32887142,186.11,186.08,0.69]
[1760859180749,3.32887142,186.09,186.06,16.15726403]
[1760859181062,3.32887142,186.08,186.06,16.15726403]
[1760859181250,3.32887142,186.08,186.06,16.84726403]
[1760859181452,3.32887142,186.08,186.06,0.69]
[1760859182255,3.32887142,186.09,186.06,0.69]
[1760859182448,0.5376055,186.13,186.07,0.69]
[1760859182449,3.32887142,186.11,186.07,0.69]
[1760859182679,3.32887142,186.12,186.07,0.69]
[1760859183055,3.32887142,186.11,186.07,0.69]
[1760859183256,3.32887142,186.1,186.07,0.69]
[1760859183455,3.32887142,186.1,186.08,0.69]
[1760859183647,3.32887142,186.11,186.08,0.69]
[1760859186069,124.98,186.15,186.08,0.69]
[1760859186278,3.32887142,186.14,186.08,4.01887142]
[1760859186576,3.32887142,186.14,186.09,4.01887142]
[1760859186764,3.32887142,186.14,186.1,0.69]
[1760859187660,0.5376055,186.17,186.11,4.55618806]
[1760859187869,3.32887142,186.18,186.12,4.01887142]
[1760859188060,3.86647692,186.18,186.13,0.69]
[1760859188382,4.52647692,186.18,186.14,0.69]
[1760859189382,3.32887142,186.17,186.14,0.69]
[1760859189769,3.32887142,186.17,186.13,0.7]
[1760859189970,3.32887142,186.17,186.14,0.7]
[1760859191954,3.32887142,186.17,186.15,0.7]
[1760859192159,3.32887142,186.17,186.13,3.32887142]
[1760859192382,3.32887142,186.17,186.14,0.7]
[1760859192970,3.32887142,186.17,186.15,0.7]
[1760859193862,3.32887142,186.17,186.13,4.04887142]
[1760859194063,3.32887142,186.17,186.14,0.72]
[1760859194669,3.42887142,186.19,186.15,1.25720118]
[1760859194867,0.1,186.19,186.16,0.72]
[1760859195070,0.1,186.19,186.17,0.72]
[1760859196075,0.1,186.19,186.15,12.56693469]
[1760859196277,0.1,186.19,186.18,0.72]
[1760859196471,0.79,186.19,186.16,4.40364924]
[1760859196674,0.79,186.19,186.15,0.72]
[1760859196965,4.11887142,186.19,186.15,4.04887142]
[1760859198393,3.42887142,186.19,186.16,0.72]
[1760859198687,0.1,186.19,186.16,0.72]
[1760859198989,3.42887142,186.19,186.16,0.72]
[1760859199686,0.1,186.19,186.16,0.72]
[1760859200277,0.1,186.19,186.17,0.72]
[1760859201383,0.1,186.19,186.18,0.72]
[1760859203892,0.1,186.19,186.17,0.72]
[1760859204073,0.1,186.19,186.18,0.72]
[1760859207799,0.1,186.19,186.18,1.25711462]
[1760859209182,0.1,186.19,186.18,9.95713224]
[1760859215305,0.1,186.19,186.18,0.53711462]
[1760859215497,0.1,186.19,186.17,1.25714347]
[1760859216305,0.1,186.19,186.18,0.72]
[1760859216491,0.1,186.19,186.17,1.25714347]
[1760859218705,0.1,186.19,186.17,0.53714347]
[1760859219918,0.1,186.19,186.14,3.32887142]
[1760859219919,0.69,186.18,186.14,0.53723004]
[1760859220121,0.69,186.18,186.14,1.25723004]